bitfinex-derivatives/quotes_BTCF0:USTF0_20210111
["timestamp","ask_amount","ask_price","bid_price","bid_amount"]
[1610333807053,3.1952,36512.0,36511.0,0.5]
[1610333807253,3.1952,36512.0,36511.0,1.5]
[1610333807953,3.1952,36512.0,36511.0,8.0]
[1610333809255,3.1952,36512.0,36511.0,8.13632608]
[1610333811756,3.1952,36512.0,36511.0,8.0]
[1610333811954,3.1952,36512.0,36511.0,3.0]
[1610333812855,3.19553696,36512.0,36511.0,3.0]
[1610333813057,3.1952,36512.0,36511.0,3.0]
[1610333813255,0.0832,36518.0,36511.0,3.13632608]
[1610333813456,2.86496118,36522.0,36511.0,3.13632608]
[1610333813656,2.86496118,36522.0,36512.0,1.0]
[1610333813856,0.00033695,36521.0,36512.0,2.0]
[1610333814059,0.00033691,36524.0,36512.0,1.0]
[1610333814259,0.00033691,36524.0,36513.0,2.0]
[1610333814458,2.87207521,36525.0,36513.0,2.0]
[1610333814659,0.00033693,36523.0,36513.0,1.0]
[1610333814858,0.00033693,36523.0,36512.0,1.0]
[1610333814859,0.00033693,36524.0,36512.0,2.0]
[1610333815258,2.70741214,36525.0,36512.0,1.0]
[1610333815458,3.01772604,36539.0,36514.0,0.5]
[1610333815658,3.01772604,36539.0,36514.0,2.0]
[1610333815858,0.13632608,36540.0,36538.0,0.13632608]
[1610333816058,0.13632608,36540.0,36538.0,6.13632608]
[1610333816257,0.00033687,36539.0,36538.0,6.13632608]
[1610333816658,3.03301748,36546.0,36538.0,6.13632608]
[1610333816860,3.03301748,36546.0,36538.0,7.63632608]
[1610333817058,0.00033682,36545.0,36538.0,8.13632608]
[1610333817259,0.00033682,36545.0,36539.0,1.0]
[1610333817458,0.00033682,36545.0,36539.0,2.0]
[1610333817659,0.00033682,36545.0,36540.0,1.0]
[1610333817860,0.13632608,36547.0,36544.0,0.13632608]
[1610333818060,7.57090125,36553.0,36545.0,5.0]
[1610333818260,0.00033677,36546.0,36545.0,5.09796]
[1610333818660,0.00033675,36552.0,36546.0,0.5]
[1610333818860,3.04283024,36559.0,36546.0,0.5]
[1610333819063,0.00033673,36551.0,36546.0,1.5]
[1610333819261,0.00033673,36551.0,36547.0,0.5]
[1610333819463,0.00033673,36558.0,36547.0,0.5]
[1610333819661,0.00033673,36550.0,36547.0,0.5]
[1610333819861,0.13632608,36551.0,36548.0,0.5]
[1610333820062,0.13632608,36551.0,36550.0,5.0]
[1610333820662,0.13632608,36551.0,36550.0,5.5]
[1610333820862,0.13632608,36551.0,36550.0,6.0]
[1610333821062,0.13632608,36551.0,36550.0,7.0]
[1610333821865,3.04512087,36564.0,36550.0,7.0]
[1610333822068,3.04512087,36564.0,36550.0,2.0]
[1610333822469,0.13632608,36556.0,36554.0,0.13632608]
[1610333822672,0.0003367,36563.0,36554.0,0.13632608]
[1610333822869,3.04512087,36564.0,36554.0,0.21561608]
[1610333823068,3.04512087,36564.0,36555.0,0.5]
[1610333823268,0.00033668,36563.0,36555.0,1.0]
[1610333823469,0.00033668,36563.0,36556.0,1.5]
[1610333823669,2.91206195,36563.0,36556.0,1.5]
[1610333823871,2.91172527,36563.0,36557.0,1.5]
[1610333824072,2.91172527,36563.0,36562.0,1.0]
[1610333824270,2.91172527,36563.0,36562.0,1.13632608]
[1610333824672,2.91172527,36563.0,36562.0,1.23111608]
[1610333824870,2.91172527,36563.0,36562.0,2.23111608]
[1610333825071,2.90706852,36570.0,36562.0,2.73111608]
[1610333825272,2.90706852,36570.0,36563.0,1.0]
[1610333825472,2.81021541,36574.0,36563.0,1.5]
[1610333825671,2.72721541,36574.0,36563.0,2.0]
[1610333825872,3.0559736,36593.0,36564.0,1.0]
[1610333826072,3.0559736,36593.0,36573.0,6.0]
[1610333826271,3.06205122,36599.0,36573.0,6.0863]
[1610333826472,0.13632608,36593.0,36587.0,0.13632608]
[1610333826672,0.13632608,36593.0,36587.0,0.21724608]
[1610333826873,3.06205122,36599.0,36587.0,0.21724608]
[1610333827276,3.06870251,36609.0,36587.0,1.21724608]
[1610333828075,3.07260542,36617.0,36587.0,2.21724608]
[1610333828476,3.4604,36613.0,36587.0,2.21724608]
[1610333828676,3.02860542,36617.0,36587.0,2.21724608]
[1610333828877,3.02860542,36617.0,36588.0,1.5]
[1610333829076,0.2788,36630.0,36589.0,1.5]
[1610333829276,0.1556,36638.0,36590.0,1.5]
[1610333829676,0.00033622,36629.0,36590.0,1.5]
[1610333829879,0.00033622,36637.0,36590.0,1.0]
[1610333830077,0.09466,36641.0,36590.0,0.5]
[1610333830277,0.09466,36641.0,36589.0,2.0]
[1610333830477,0.13632608,36636.0,36635.0,0.13632608]
[1610333830676,0.285,36647.0,36635.0,0.13632608]
[1610333830878,0.00033616,36639.0,36635.0,0.13632608]
[1610333831278,0.11694,36649.0,36636.0,0.5]
[1610333831477,0.11694,36649.0,36636.0,1.5]
[1610333831677,3.22967635,36670.0,36636.0,1.5]
[1610333831877,3.22967635,36670.0,36627.0,0.07222]
[1610333831878,3.22967635,36670.0,36635.0,0.11166]
[1610333832077,0.07595,36669.0,36637.0,1.5]
[1610333832479,0.07595,36669.0,36638.0,1.13632608]
[1610333833080,0.07595,36669.0,36639.0,0.5]
[1610333833280,0.07595,36669.0,36639.0,1.5]
[1610333833479,0.07595,36669.0,36640.0,0.5]
[1610333833679,0.07595,36669.0,36640.0,0.83002323]
[1610333833879,2.63245285,36659.0,36640.0,1.33002323]
[1610333834079,2.63245285,36659.0,36647.0,6.0]
[1610333834279,2.63245285,36659.0,36647.0,6.10324]
[1610333834479,2.92618262,36667.0,36647.0,6.23956608]
[1610333834679,0.13632608,36668.0,36647.0,7.73956608]
[1610333835279,0.13632608,36668.0,36647.0,8.23956608]
[1610333836079,0.13632608,36668.0,36647.0,2.10324]
[1610333836279,0.0809,36662.0,36647.0,2.10324]
[1610333836479,0.16632608,36648.0,36647.0,2.10324]
[1610333837280,0.03,36648.0,36647.0,2.10324]
[1610333838481,0.03,36648.0,36647.0,2.23956608]
[1610333838779,0.13632608,36670.0,36647.0,2.23956608]
[1610333838979,0.1556,36690.0,36647.0,2.23956608]
[1610333839380,0.2725,36700.0,36647.0,2.23956608]
[1610333839981,0.2725,36700.0,36648.0,2.0]
[1610333840183,0.2725,36700.0,36648.0,2.5]
[1610333840382,0.1556,36713.0,36695.0,0.13632608]
[1610333841184,0.2908,36721.0,36695.0,0.13632608]
[1610333841383,0.3179,36728.0,36696.0,1.0]
[1610333841583,0.1556,36736.0,36699.0,3.223]
[1610333842383,0.13632608,36711.0,36703.0,0.13632608]
[1610333842585,0.13632608,36711.0,36700.0,1.0]
[1610333842985,0.13632608,36711.0,36700.0,0.5]
[1610333843185,0.13632608,36711.0,36701.0,1.0]
[1610333843585,0.13632608,36711.0,36704.0,0.5]
[1610333843986,0.13632608,36711.0,36702.0,1.0]
[1610333844185,0.13632608,36711.0,36705.0,1.0]
[1610333844385,0.09844,36727.0,36705.0,1.5]
[1610333844586,0.13632608,36706.0,36705.0,2.0]
[1610333845185,0.13632608,36706.0,36705.0,1.5]
[1610333845585,0.13632608,36706.0,36705.0,2.0]
[1610333847993,0.09632608,36706.0,36705.0,2.0]
[1610333849191,0.03076608,36727.0,36705.0,2.0]
[1610333849390,0.1556,36736.0,36705.0,2.0]
[1610333849791,0.1556,36736.0,36706.0,2.0]
[1610333849993,0.00033549,36735.0,36706.0,2.0]
[1610333850191,0.00033549,36735.0,36703.0,2.0]
[1610333850392,0.13632608,36705.0,36703.0,2.13632608]
[1610333850594,0.00033549,36735.0,36703.0,1.13632608]
[1610333850792,0.00033549,36735.0,36704.0,2.0]
[1610333850992,0.00033549,36735.0,36704.0,5.5085]
[1610333851595,0.0814,36734.0,36705.0,2.0]
[1610333851996,0.00033549,36733.0,36706.0,1.0]
[1610333852196,0.07745549,36733.0,36706.0,2.0]
[1610333852394,0.13632608,36717.0,36713.0,0.13632608]
[1610333853396,0.13632608,36717.0,36714.0,0.5]
[1610333853595,0.13632608,36717.0,36714.0,2.0]
[1610333853795,0.10259,36723.0,36715.0,1.5]
[1610333853996,0.10259,36723.0,36716.0,1.0]
[1610333854396,0.13632608,36719.0,36716.0,1.5]
[1610333854596,0.13632608,36719.0,36717.0,1.5]
[1610333854795,0.13632608,36719.0,36717.0,2.0]
[1610333854996,0.13632608,36719.0,36718.0,0.5]
[1610333855197,0.13632608,36719.0,36718.0,1.0]
[1610333855396,0.13632608,36719.0,36718.0,1.5]
[1610333856097,0.13632608,36719.0,36718.0,1.4169]
[1610333856297,0.13666154,36719.0,36704.0,3.5085]
[1610333856497,0.13632608,36705.0,36676.0,0.13632608]
[1610333856697,0.1556,36704.0,36649.0,0.15087]
[1610333857098,0.15593554,36704.0,36649.0,0.15087]
[1610333857297,0.00033562,36703.0,36649.0,0.15087]
[1610333858299,0.03390298,36703.0,36649.0,0.15087]
[1610333858498,0.03390298,36703.0,36695.0,1.0]
[1610333858898,0.03390298,36703.0,36657.0,0.09415]
[1610333859500,0.03390298,36703.0,36658.0,1.0]
[1610333859898,0.03390298,36703.0,36696.0,1.0]
[1610333860299,0.03390298,36703.0,36696.0,0.3673]
[1610333860499,0.13632608,36697.0,36696.0,0.3499]
[1610333860700,0.23198608,36697.0,36673.0,0.07801]
[1610333860901,0.00033568,36696.0,36673.0,0.07801]
[1610333861700,0.03389945,36696.0,36673.0,0.07801]
[1610333861900,0.03389945,36696.0,36674.0,1.0]
[1610333862100,0.03389945,36696.0,36674.0,1.5]
[1610333862300,0.03389945,36696.0,36675.0,1.0]
[1610333862501,0.13632608,36682.0,36675.0,1.0]
[1610333862700,0.13632608,36682.0,36676.0,1.0]
[1610333863100,0.03389999,36681.0,36676.0,1.0]
[1610333863504,0.03389999,36681.0,36677.0,1.0]
[1610333863701,0.03389999,36681.0,36677.0,1.5]
[1610333864101,0.03389999,36681.0,36678.0,1.0]
[1610333864300,0.03389999,36681.0,36678.0,1.5]
[1610333864901,0.03389999,36681.0,36679.0,1.5]
[1610333865300,0.03389999,36681.0,36670.0,1.0]
[1610333865502,0.13627999,36681.0,36670.0,1.0]
[1610333865702,0.10238,36681.0,36680.0,0.0768]
[1610333865901,0.10238,36681.0,36680.0,0.0088]
[1610333866104,6.13629243,36681.0,36678.0,0.317]
[1610333866502,6.10238,36681.0,36680.0,1.5]
[1610333866701,6.10271584,36681.0,36680.0,1.5]
[1610333866901,6.20346854,36681.0,36680.0,1.5]
[1610333867103,6.20346854,36681.0,36680.0,1.0]
[1610333867302,6.20346854,36681.0,36680.0,0.4192]
[1610333867702,6.20346854,36681.0,36679.0,0.5]
[1610333867902,6.20346854,36681.0,36680.0,1.5]
[1610333868102,0.10238,36681.0,36680.0,1.447]
[1610333868302,0.20348023,36681.0,36680.0,1.57877]
[1610333868502,0.20348023,36681.0,36680.0,0.5]
[1610333868705,0.136304,36681.0,36680.0,0.5]
[1610333869503,0.136304,36681.0,36680.0,1.0]
[1610333870503,0.136304,36681.0,36680.0,2.0]
[1610333870703,0.13630051,36681.0,36680.0,2.0]
[1610333870903,0.13630051,36681.0,36680.0,1.7447]
[1610333871103,0.13630051,36681.0,36680.0,1.6466]
[1610333871305,0.13630051,36681.0,36680.0,1.6326]
[1610333871505,0.13630604,36681.0,36680.0,0.5509]
[1610333871705,0.13630604,36681.0,36680.0,0.5182]
[1610333871904,0.13630604,36681.0,36676.0,0.841]
[1610333872105,0.13630604,36681.0,36673.0,1.0]
[1610333872304,0.10238,36681.0,36680.0,0.27]
[1610333872504,0.21782608,36682.0,36680.0,0.4482]
[1610333872704,0.4575,36681.0,36604.0,0.2981]
[1610333872907,0.49144106,36681.0,36604.0,0.2981]
[1610333873104,0.49144412,36681.0,36604.0,0.2981]
[1610333873305,0.0339468,36680.0,36604.0,0.2981]
[1610333873504,0.0339468,36680.0,36624.0,1.0]
[1610333873908,0.0339468,36680.0,36624.0,0.9258]
[1610333874105,2.90578371,36662.0,36624.0,0.8678]
[1610333874305,2.99843371,36662.0,36624.0,0.8678]
[1610333874505,0.13632608,36625.0,36624.0,0.8678]
[1610333874905,0.13666226,36625.0,36624.0,0.8678]
[1610333875305,0.00033618,36625.0,36604.0,0.07809]
[1610333875503,0.08199,36641.0,36604.0,0.07809]
[1610333875504,0.08199,36641.0,36625.0,0.00966382]
[1610333876105,0.00033611,36640.0,36625.0,0.00966382]
[1610333876508,0.13632608,36629.0,36625.0,0.00966382]
[1610333876905,0.13632608,36629.0,36628.0,1.0]
[1610333877507,0.07599,36649.0,36628.0,1.0]
[1610333877909,0.00033607,36648.0,36628.0,1.0]
[1610333878307,0.00033607,36648.0,36629.0,1.0]
[1610333878507,0.13632608,36640.0,36629.0,1.0]
[1610333878909,0.13632608,36640.0,36630.0,1.0]
[1610333879111,0.13632608,36640.0,36630.0,0.60155]
[1610333879511,0.13632608,36640.0,36631.0,1.0]
[1610333879910,0.13632608,36640.0,36632.0,1.0]
[1610333880110,0.13632608,36640.0,36632.0,1.5]
[1610333880315,0.0825,36639.0,36633.0,0.5]
[1610333880515,0.13632608,36634.0,36633.0,0.459]
[1610333880711,0.13632608,36634.0,36633.0,1.4174]
[1610333881112,0.13666217,36634.0,36633.0,1.0]
[1610333881310,0.13666217,36634.0,36633.0,0.9924]
[1610333882110,0.13666217,36634.0,36633.0,1.9851]
[1610333882310,0.13666217,36634.0,36633.0,1.911]
[1610333882510,0.13666217,36634.0,36633.0,1.1844]
[1610333882713,0.13666217,36634.0,36633.0,0.9128]
[1610333882913,0.13666217,36634.0,36633.0,1.3337]
[1610333883113,0.13666217,36634.0,36633.0,1.2299]
[1610333883312,0.13666217,36634.0,36633.0,1.1073]
[1610333883512,0.13666217,36634.0,36633.0,1.0792]
[1610333883715,0.13666217,36634.0,36633.0,1.0]
[1610333883914,0.17029096,36634.0,36633.0,1.0]
[1610333884513,0.17029096,36634.0,36633.0,2.0]
[1610333884715,0.17029096,36634.0,36633.0,1.9615]
[1610333885114,0.17029096,36634.0,36633.0,1.8588]
[1610333885314,0.17029096,36634.0,36633.0,1.8454]
[1610333886115,0.13666217,36634.0,36633.0,1.8454]
[1610333886515,0.25228378,36634.0,36633.0,1.8454]
[1610333886917,0.17028378,36634.0,36633.0,1.8454]
[1610333887816,0.25278378,36634.0,36633.0,1.8454]
[1610333888818,0.25278378,36634.0,36633.0,1.764]
[1610333889218,0.25278378,36634.0,36633.0,1.5479]
[1610333889618,0.25278378,36634.0,36633.0,0.4786]
[1610333890020,0.25278378,36634.0,36633.0,0.4256]
[1610333890320,0.25278378,36634.0,36633.0,0.7173]
[1610333890520,0.25278378,36634.0,36633.0,0.3705]
[1610333890720,0.25278378,36634.0,36633.0,0.1667]
[1610333891120,6.25278378,36634.0,36633.0,0.1667]
[1610333891321,6.25278378,36634.0,36626.0,0.9765]
[1610333891521,6.32005227,36634.0,36626.0,0.7605]
[1610333891724,3.23533584,36630.0,36626.0,0.5424]
[1610333891924,3.31965584,36630.0,36626.0,0.0528]
[1610333892123,3.31965584,36630.0,36593.0,0.7485]
[1610333892124,0.5774,36627.0,36593.0,0.7485]
[1610333892324,0.5774,36627.0,36593.0,0.3888]
[1610333892524,0.13632608,36594.0,36571.0,1.0]
[1610333892724,0.13632608,36594.0,36553.0,0.2793]
[1610333893124,0.00033645,36593.0,36553.0,0.2793]
[1610333893725,0.08243645,36593.0,36553.0,0.2793]
[1610333893924,0.00033652,36592.0,36553.0,0.2542]
[1610333894527,0.13632608,36557.0,36553.0,0.2542]
[1610333895126,0.08215,36575.0,36553.0,0.2542]
[1610333895529,0.08215,36575.0,36554.0,1.5]
[1610333895727,0.0821,36574.0,36554.0,1.5]
[1610333895928,0.0821,36574.0,36555.0,1.0]
[1610333896529,0.0821,36574.0,36573.0,0.13632608]
[1610333896729,0.0821,36574.0,36573.0,0.23612608]
[1610333896929,0.13632608,36580.0,36573.0,0.23612608]
[1610333897131,0.13632608,36580.0,36573.0,1.23612608]
[1610333897330,0.00033648,36579.0,36573.0,1.0998]
[1610333897730,0.00033648,36579.0,36574.0,1.0]
[1610333898130,0.0826,36578.0,36575.0,1.0]
[1610333898530,0.13632608,36576.0,36575.0,1.0]
[1610333898731,0.21732608,36576.0,36575.0,1.0]
[1610333898930,0.21766267,36576.0,36575.0,0.5]
[1610333899331,0.21732608,36576.0,36575.0,0.335]
[1610333899531,0.32537269,36576.0,36575.0,1.835]
[1610333899733,0.32537269,36576.0,36575.0,1.5795]
[1610333899930,0.32537269,36576.0,36575.0,0.8342]
[1610333900130,0.32537269,36576.0,36572.0,0.9933]
[1610333900332,0.35904502,36576.0,36572.0,0.7092]
[1610333900531,0.35904502,36576.0,36525.0,0.13632608]
[1610333900532,0.03401269,36575.0,36525.0,0.13632608]
[1610333900732,0.03401269,36575.0,36573.0,0.5]
[1610333900934,0.03401269,36575.0,36573.0,0.3729]
[1610333901133,0.03401269,36575.0,36573.0,0.2342]
[1610333901333,0.03401269,36575.0,36529.0,0.07668]
[1610333901534,0.03401269,36575.0,36529.0,0.03508]
[1610333901735,0.03401269,36575.0,36490.0,0.11788]
[1610333901936,0.03401269,36575.0,36464.0,1.0]
[1610333901937,0.00033676,36575.0,36464.0,1.0]
[1610333902135,0.00033692,36574.0,36547.0,0.5]
[1610333902337,2.8326255,36567.0,36547.0,0.5]
[1610333902536,0.13632608,36548.0,36547.0,0.154]
[1610333902738,0.21108608,36548.0,36547.0,0.127]
[1610333902936,0.21108608,36548.0,36547.0,0.8548]
[1610333903136,0.21142304,36548.0,36547.0,0.8276]
[1610333903337,0.21142304,36548.0,36547.0,0.7865]
[1610333903537,0.21142304,36548.0,36547.0,0.7419]
[1610333903737,0.84932304,36548.0,36501.0,4.3736]
[1610333903936,0.84932304,36548.0,36530.0,0.5]
[1610333904339,0.84898608,36548.0,36530.0,0.5]
[1610333904540,0.13632608,36531.0,36530.0,0.5]
[1610333904738,0.13632608,36531.0,36526.0,0.5]
[1610333904939,0.13632608,36531.0,36530.0,1.0]
[1610333905541,0.13632608,36531.0,36530.0,1.5]
[1610333905741,0.13632608,36531.0,36530.0,1.4865]
[1610333906740,0.13632608,36531.0,36530.0,2.10057]
[1610333907144,1.0,36544.0,36530.0,2.10057]
[1610333907545,1.0,36544.0,36531.0,1.5]
[1610333907744,1.0828,36544.0,36531.0,1.5]
[1610333907942,1.0828,36544.0,36532.0,1.5]
[1610333908342,1.0,36544.0,36531.0,1.5]
[1610333908542,0.13632608,36543.0,36531.0,2.0]
[1610333908743,0.13632608,36543.0,36531.0,0.5]
[1610333908941,0.08879,36559.0,36533.0,0.5]
[1610333909141,0.02393,36567.0,36532.0,2.0]
[1610333909342,0.081,36572.0,36533.0,0.5]
[1610333909742,4.147,36571.0,36534.0,0.5]
[1610333910342,4.147,36571.0,36533.0,1.0]
[1610333910343,4.147,36571.0,36535.0,1.5]
[1610333910543,0.13632608,36536.0,36535.0,1.417]
[1610333910742,0.13632608,36536.0,36535.0,1.0]
[1610333911146,0.13632608,36536.0,36535.0,0.7514]
[1610333911545,0.13632608,36536.0,36534.0,0.5]
[1610333911745,0.21752608,36536.0,36535.0,0.5]
[1610333911944,0.21752608,36536.0,36535.0,0.9597]
[1610333912244,0.21752608,36536.0,36535.0,1.83]
[1610333912443,0.21752608,36536.0,36535.0,1.5]
[1610333912645,0.21752608,36536.0,36535.0,0.7803]
[1610333912843,1.21752608,36536.0,36535.0,0.7803]
[1610333913043,1.21752608,36536.0,36535.0,0.7586]
[1610333913245,1.21786305,36536.0,36535.0,0.2769]
[1610333913444,1.21786305,36536.0,36535.0,0.1922]
[1610333913644,1.21786305,36536.0,36531.0,0.218]
[1610333913843,1.21786305,36536.0,36519.0,4.39259]
[1610333914044,0.00033704,36535.0,36501.0,1.0]
[1610333914444,0.00033704,36535.0,36531.0,0.5]
[1610333914644,0.13632608,36532.0,36531.0,0.4745]
[1610333915045,0.13666312,36532.0,36531.0,0.4045]
[1610333915247,0.13666312,36532.0,36531.0,1.1334]
[1610333915645,0.13632608,36532.0,36531.0,1.1334]
[1610333916450,0.13666314,36532.0,36531.0,1.1334]
[1610333917251,0.13666314,36532.0,36531.0,1.1194]
[1610333917448,0.13666314,36532.0,36520.0,1.2862]
[1610333917850,0.13666314,36532.0,36520.0,1.2319]
[1610333918048,0.00033723,36531.0,36520.0,1.2319]
[1610333918248,0.00033723,36531.0,36520.0,1.0359]
[1610333918649,0.13632608,36521.0,36520.0,1.0359]
[1610333918851,0.23878608,36521.0,36520.0,1.0359]
[1610333919052,0.27285743,36521.0,36410.0,0.2856]
[1610333919251,0.27285743,36521.0,36447.0,0.0816]
[1610333919654,0.0340777,36520.0,36447.0,0.0816]
[1610333920053,0.0340777,36520.0,36410.0,0.2856]
[1610333920252,0.0340777,36520.0,36502.0,0.5]
[1610333920652,0.13632608,36503.0,36502.0,0.5]
[1610333920852,0.13632608,36503.0,36468.0,0.13632608]
[1610333920853,0.24890348,36503.0,36478.0,0.5]
[1610333921152,0.24890348,36503.0,36468.0,0.13177238]
[1610333921352,1.0,36487.0,36469.0,1.0]
[1610333921952,0.00033737,36486.0,36469.0,1.0]
[1610333922157,1.0,36487.0,36469.0,1.0]
[1610333922353,1.0,36487.0,36470.0,1.0]
[1610333922553,0.00033736,36486.0,36470.0,1.5]
[1610333922755,0.13632608,36471.0,36470.0,1.5]
[1610333923154,0.13632608,36471.0,36470.0,0.5]
[1610333923555,0.13632608,36471.0,36470.0,3.0]
[1610333923755,0.13632608,36471.0,36470.0,2.5]
[1610333924154,0.13632608,36471.0,36470.0,2.4954725]
[1610333924557,0.13632608,36471.0,36470.0,2.0]
[1610333924757,0.13632608,36471.0,36470.0,2.13632608]
[1610333924957,0.13632608,36471.0,36470.0,1.835]
[1610333925358,0.13666346,36471.0,36470.0,1.662]
[1610333925957,0.13666346,36471.0,36470.0,1.0]
[1610333926357,0.13666346,36471.0,36470.0,2.0]
[1610333926558,0.13666346,36471.0,36470.0,3.0]
[1610333927559,0.21996346,36471.0,36470.0,2.9863]
[1610333928358,0.21996346,36471.0,36470.0,2.971]
[1610333928559,0.21996346,36471.0,36470.0,0.971]
[1610333928760,0.21996346,36471.0,36470.0,0.8903]
[1610333928960,0.21996346,36471.0,36470.0,0.824]
[1610333929162,0.21996346,36471.0,36470.0,0.8196]
[1610333929362,0.21996346,36471.0,36470.0,1.8196]
[1610333929563,0.29498346,36471.0,36470.0,1.8196]
[1610333930164,0.21168346,36471.0,36470.0,1.8196]
[1610333930564,0.13666346,36471.0,36470.0,1.8196]
[1610333930766,0.13666346,36471.0,36470.0,1.498]
[1610333931063,0.13666346,36471.0,36470.0,1.4701]
[1610333931264,0.13666346,36471.0,36470.0,1.9701]
[1610333931464,0.31792346,36471.0,36470.0,1.9701]
[1610333931665,0.23632346,36471.0,36470.0,1.7787]
[1610333932665,0.13666346,36471.0,36470.0,1.7787]
[1610333933465,0.21835346,36471.0,36470.0,1.7787]
[1610333933866,0.21835346,36471.0,36470.0,1.7214]
[1610333935668,0.13632608,36471.0,36470.0,1.7214]
[1610333937470,0.13632608,36471.0,36470.0,1.6937]
[1610333937670,0.13632608,36471.0,36470.0,1.6526]
[1610333937871,0.13666365,36471.0,36470.0,1.3956]
[1610333938071,0.13666365,36471.0,36470.0,1.0608]
[1610333938272,0.13666365,36471.0,36470.0,0.5342]
[1610333938472,0.13666365,36471.0,36427.0,0.08611]
[1610333938671,0.13632608,36443.0,36427.0,0.08611]
[1610333939671,0.13632608,36443.0,36414.0,0.2831]
[1610333939872,0.0817,36442.0,36414.0,0.2831]
[1610333940071,0.13632608,36443.0,36414.0,0.2831]
[1610333940271,0.13632608,36443.0,36414.0,0.38957]
[1610333940674,0.13632608,36415.0,36414.0,0.38957]
[1610333943273,0.13632608,36415.0,36414.0,0.10647]
[1610333943677,0.13666394,36415.0,36414.0,0.10647]
[1610333944073,0.13666394,36415.0,36356.0,0.2978]
[1610333944474,0.00033794,36414.0,36356.0,0.2978]
[1610333944674,0.00033794,36414.0,36383.0,0.13632608]
[1610333945074,0.00033794,36414.0,36383.0,0.23308608]
[1610333945275,3.6185,36420.0,36383.0,0.09676]
[1610333945474,0.00033797,36413.0,36383.0,0.09676]
[1610333945875,0.03413969,36419.0,36383.0,0.09676]
[1610333946075,0.00033802,36412.0,36383.0,0.09676]
[1610333946278,0.0825,36417.0,36383.0,0.09676]
[1610333946474,0.00033805,36411.0,36383.0,0.09676]
[1610333946675,0.13632608,36384.0,36383.0,0.09676]
[1610333947876,0.21782608,36384.0,36383.0,0.09676]
[1610333948678,0.21782608,36384.0,36383.0,0.01456]
[1610333949778,0.13632608,36384.0,36383.0,6e-05]
[1610333950179,0.13632608,36384.0,36373.0,3.3081]
[1610333950682,0.13632608,36374.0,36373.0,3.3081]
[1610333951678,0.50585026,36359.0,36345.0,3.5585]
[1610333951879,0.50585026,36359.0,36308.0,1.0]
[1610333952480,0.50585026,36359.0,36311.0,0.0829]
[1610333952679,0.13632608,36357.0,36332.0,0.13632608]
[1610333952878,0.13632608,36357.0,36353.0,1.0]
[1610333954683,0.13632608,36357.0,36328.0,0.13632608]
[1610333955082,0.13632608,36357.0,36356.0,0.2944]
[1610333956883,0.21862608,36357.0,36356.0,0.2944]
[1610333957082,0.13632608,36357.0,36356.0,0.2944]
[1610333957684,3.9853,36365.0,36356.0,0.2944]
[1610333957885,0.826,36369.0,36356.0,0.40854]
[1610333958085,0.0814,36420.0,36356.0,0.40854]
[1610333958285,0.0813,36387.0,36356.0,0.40854]
[1610333958486,0.07348,36398.0,36356.0,0.40854]
[1610333958686,0.07348,36398.0,36385.0,0.13632608]
[1610333958886,0.07348,36398.0,36385.0,0.21402608]
[1610333959486,0.0828,36451.0,36385.0,0.21402608]
[1610333960087,1.0,36422.0,36404.0,1.0]
[1610333960690,0.13632608,36405.0,36404.0,1.0]
[1610333960888,0.20980608,36405.0,36404.0,1.0]
[1610333961891,0.13632608,36405.0,36404.0,1.0]
[1610333962089,0.13632608,36405.0,36389.0,0.13632608]
[1610333962689,0.13632608,36390.0,36389.0,0.13632608]
[1610333963491,0.0848,36417.0,36389.0,0.13632608]
[1610333963691,0.11648,36426.0,36389.0,0.23109608]
[1610333964091,0.000338,36425.0,36389.0,0.23109608]
[1610333964892,0.00033797,36429.0,36414.0,0.13632608]
[1610333965092,0.1556,36430.0,36414.0,0.21480608]
[1610333965293,0.00033797,36429.0,36414.0,0.21480608]
[1610333965792,0.00033797,36429.0,36414.0,0.07848]
[1610333966093,0.0816,36428.0,36414.0,0.07848]
[1610333966692,0.00033797,36427.0,36414.0,0.07848]
[1610333966892,0.13632608,36415.0,36414.0,0.07848]
[1610333967094,0.00033797,36427.0,36414.0,0.07848]
[1610333967293,0.0816,36428.0,36414.0,0.07848]
[1610333967494,0.00033795,36426.0,36414.0,0.07848]
[1610333967693,0.00033795,36427.0,36414.0,0.07848]
[1610333968096,0.00033795,36425.0,36414.0,0.07848]
[1610333968294,0.0815,36424.0,36414.0,0.07848]
[1610333968494,0.08183799,36424.0,36414.0,0.07498]
[1610333968694,0.03379872,36423.0,36414.0,0.07498]
[1610333968894,0.13632608,36415.0,36414.0,0.07498]
[1610333969095,0.13632608,36415.0,36414.0,0.00628]
[1610333969294,0.17046239,36415.0,36390.0,0.2719]
[1610333969494,0.03379978,36414.0,36390.0,0.2719]
[1610333969696,0.03413777,36414.0,36390.0,0.2719]
[1610333970895,0.03413777,36414.0,36393.0,0.13632608]
[1610333971495,0.03413643,36429.0,36393.0,0.13632608]
[1610333971895,0.03413686,36413.0,36393.0,0.13632608]
[1610333972097,0.10264,36421.0,36393.0,0.13632608]
[1610333972299,0.00033799,36420.0,36393.0,0.13632608]
[1610333972498,0.03413566,36420.0,36393.0,0.13632608]
[1610333972900,0.03413566,36420.0,36414.0,0.13632608]
[1610333973099,0.03413674,36429.0,36414.0,0.21497608]
[1610333973499,0.00033795,36419.0,36414.0,0.21497608]
[1610333973699,0.03413239,36428.0,36414.0,0.21497608]
[1610333973899,0.03413266,36429.0,36414.0,0.21497608]
[1610333974300,0.03413174,36427.0,36414.0,0.21497608]
[1610333974501,0.0341308,36428.0,36414.0,0.21497608]
[1610333974701,0.03413103,36429.0,36414.0,0.21497608]
[1610333974902,0.03413103,36429.0,36423.0,0.13632608]
[1610333975101,0.00033793,36427.0,36423.0,0.13632608]
[1610333975301,0.08701793,36444.0,36423.0,0.13632608]
[1610333975501,0.12653899,36459.0,36423.0,0.23170608]